{"text_format":"1","workbook":"xlsx","n_sheets":3,"sheets":["list 1","list 2","list 3"],"not_rendered":{"charts":0,"images":1,"macros":0,"external_links":0,"defined_names":0,"comments":0,"pivot_tables":0},"unopened":[],"bounds":{"document_bytes":16777216,"sheet_cells":100000,"rows_first":2000,"rows_last":500,"rows_between":2000,"halvings":0,"cell_chars":16384,"cell_head_chars":4096},"cells_cut":0,"cells_raw":0,"read":"whole","date_system":"1900"}

{"sheet":"list 1","index":0,"n_rows":58,"n_cols":22,"rows_kept":58,"cut":false,"hidden":false,"merged":[[18,11,18,14],[4,12,4,18],[15,6,15,13],[15,15,15,18],[15,0,15,4],[13,0,13,19],[9,6,9,7],[9,0,9,1]]}
[null,null,null,null,null,null,null,null,"BONITAČNÍ KARTA KCHND ČR"]
[]
[null,null,null,null,null,null,null,null,"Místo konání: Mladá Boleslav"]
[]
[null,null,null,null,null,null,null,null,"Datum konání: ",null,null,null,"2023-11-04"]
["Bonitační komise:  "]
[null,"předseda: Karel Klobása",null,null,null,null,null,null,null,null,"členové: Vladimír Adlt, Miroslav Václavík"]
[null,null,null,null,null," "]
["Pes:       ",null,"obě varlata ",null,null,null,"Fena:",null,null,null,null,null,null,null,null,"Výška: 81   ",null,null,"cm"]
[null,null,"ano",null,"ne",null,"X"]
["Barva: ",null,null,"žlutá",null,"žíhaná",null,"černá",null,"skvrnitá",null,"plátová",null,"plášťová",null,null,"modrá",null,"černá do modrých"]
[null,null,null,null,null,null,"X"]
[]
["Jméno psa:  BACCARA vom Zwiebelberg"]
["CMKU/ND č.",null,null,null,null,null,null,"čip:",null,null,null,null,null,null,null,"datum narození:"]
["23 427/21",null,null,null,null,null,203098100529244,null,null,null,null,null,null,null,null,null,null,null,null,"2021-06-03"]
[]
["DKK",null,"č.",null,null,"hodnocení:",null,null,null,null,null,"DNA vyšetření"]
["DLK",null,null,null,null,"OCD"]
[]
["Otec: ELRED Norach",null,null,null,null,null,null,null,null,null,null,null,null,"Matka: FLORIANA Pretorian Dog"]
[]
["Majitel: Kateřina Havlová",null,null,null,null,null,null,null,null,null,null,null,null,null,null,null," ",null,"tel.:",604439720]
[]
["Adresa: Nádražní 42/82, 150 00 Praha 5"]
["Každý pes, který vykazuje fyzické nebo povahově zjevné abnormality, nemůže být zařazen do chovu."]
[]
["Zadaný počet bodů, které pes získal za aktuální standardní položky se nemusí shodovat s označením, které zjistí"]
["předseda bonitační komise. V takovém případě slouží body pouze jako přibližná hodnota. "]
["O připuštění do chovu rozhoduje v každém případě (nezávisle na dosaženém počtu bodů) bonitační komise."]
[]
[null,"Hodnocení",null,null,null,null,null,null,null,null,null,null,null,null,null,null,null,null,"body ",null," min.","max. "]
[1,{"$f":"'list 2'!F3","v":5},2,{"$f":"'list 2'!F4","v":7},3,{"$f":"'list 2'!F5","v":4},4,{"$f":"'list 2'!F6","v":4},5,{"$f":"'list 2'!F7","v":4},6,{"$f":"'list 2'!F8","v":4},7,{"$f":"'list 2'!F9","v":7},null,null,null,null,{"$f":"B33+D33+F33+H33+J33+L33+N33","v":35},"celk.dojem",20,35]
[8,{"$f":"'list 2'!F10","v":3},9,{"$f":"'list 2'!F11","v":3},10,{"$f":"'list 2'!F12","v":4},null,null,null,null,null,null,null,null,null,null,null,null,{"$f":"B34+D34+F34","v":10},"chování",8,12]
[11,{"$f":"'list 2'!F13","v":3},12,{"$f":"'list 2'!F14","v":5},13,{"$f":"'list 2'!F15","v":5},14,{"$f":"'list 2'!F16","v":5},15,{"$f":"'list 2'!F17","v":5},16,{"$f":"'list 2'!F18","v":4},17,{"$f":"'list 2'!F19","v":4},18,{"$f":"'list 2'!F20","v":4},19,{"$f":"'list 2'!F21","v":5},{"$f":"B35+D35+F35+H35+J35+L35+N35+P35+R35","v":40},"hlava ",20,40]
[20,{"$f":"'list 2'!F22","v":4},21,{"$f":"'list 2'!F23","v":4},null,null,null,null,null,null,null,null,null,null,null,null,null,null,{"$f":"B36+D36","v":8},"uši",5,8]
[22,{"$f":"'list 2'!F24","v":6},23,{"$f":"'list 2'!F25","v":5},24,{"$f":"'list 2'!F26","v":4},null,null,null,null,null,null,null,null,null,null,null,null,{"$f":"B37+D37+F37","v":15},"oči",6,15]
[25,{"$f":"'list 2'!F27","v":5},26,{"$f":"'list 2'!F28","v":3},null,null,null,null,null,null,null,null,null,null,null,null,null,null,{"$f":"B38+D38","v":8},"postavení zubů",6,10]
[27,{"$f":"'list 2'!F29","v":4},28,{"$f":"'list 2'!F30","v":4},29,{"$f":"'list 2'!F31","v":4},null,null,null,null,null,null,null,null,null,null,null,null,{"$f":"B39+D39+F39","v":12},"zuby",5,12]
[30,{"$f":"'list 2'!F32","v":6},31,{"$f":"'list 2'!F33","v":4},null,null,null,null,null,null,null,null,null,null,null,null,null,null,{"$f":"B40+D40","v":10},"krk",3,10]
[32,{"$f":"'list 2'!F34","v":10},null,null,null,null,null,null,null,null,null,null,null,null,null,null,null,null,{"$f":"B41","v":10},"hřbet ",4,10]
[33,{"$f":"'list 2'!F35","v":10},34,{"$f":"'list 2'!F36","v":6},35,{"$f":"'list 2'!F37","v":4},null,null,null,null,null,null,null,null,null,null,null,null,{"$f":"B42+D42+F42","v":20},"záď/ocas",8,20]
[36,{"$f":"'list 2'!F38","v":8},37,{"$f":"'list 2'!F39","v":6},38,{"$f":"'list 2'!F40","v":6},39,{"$f":"'list 2'!F41","v":6},40,{"$f":"'list 2'!F42","v":4},null,null,null,null,null,null,null,null,{"$f":"B43+D43+F43+H43+J43","v":30},"hrudní partie",15,30]
[41,{"$f":"'list 3'!F3","v":8},42,{"$f":"'list 3'!F4","v":4},43,{"$f":"'list 3'!F5","v":4},44,{"$f":"'list 3'!F6","v":4},45,{"$f":"'list 3'!F7","v":3},46,{"$f":"'list 3'!F8","v":3},47,{"$f":"'list 3'!F9","v":4},null,null,null,null,{"$f":"B44+D44+F44+H44+J44+L44+N44","v":30},"přední končetiny",15,30]
[48,{"$f":"'list 3'!F10","v":8},49,{"$f":"'list 3'!F11","v":7},50,{"$f":"'list 3'!F12","v":5},51,{"$f":"'list 3'!F13","v":5},null,null,null,null,null,null,null,null,null,null,{"$f":"B45+D45+F45+H45","v":25},"zadní končetiny",12,25]
[52,{"$f":"'list 3'!F14","v":4},53,{"$f":"'list 3'!F15","v":4},null,null,null,null,null,null,null,null,null,null,null,null,null,null,{"$f":"B46+D46","v":8},"tlapy",4,8]
[54,{"$f":"'list 3'!F16","v":6},55,{"$f":"'list 3'!F17","v":4},56,{"$f":"'list 3'!F18","v":5},57,{"$f":"'list 3'!F19","v":5},58,{"$f":"'list 3'!F20","v":4},59,{"$f":"'list 3'!F21","v":6},null,null,null,null,null,null,{"$f":"B47+D47+F47+H47+J47+L47","v":30},"chody",15,30]
[60,{"$f":"'list 3'!F23","v":0},61,{"$f":"'list 3'!F24","v":0},62,{"$f":"'list 3'!F25","v":0},63,{"$f":"'list 3'!F26","v":0},64,{"$f":"'list 3'!F27","v":6},65,{"$f":"'list 3'!F28","v":3},66,{"$f":"'list 3'!F29","v":3},67,{"$f":"'list 3'!F30","v":3},68,{"$f":"'list 3'!F31","v":0},{"$f":"B48+D48+F48+H48+J48+L48+N48+P48+R48","v":15},"barva",5,15]
[69,{"$f":"'list 3'!F32","v":0},70,{"$f":"'list 3'!F34","v":0},71,{"$f":"'list 3'!F35","v":0},72,{"$f":"'list 3'!F36","v":0},73,{"$f":"'list 3'!F37","v":0},74,{"$f":"'list 3'!F38","v":0},75,{"$f":"'list 3'!F39","v":0},76,{"$f":"'list 3'!F40","v":0},77,{"$f":"'list 3'!F41","v":0},{"$f":"B49+D49+F49+H49+J49+L49+N49+P49+R49","v":0}]
[null,null,null,null,null,null,null,null,null,null,null,null,null,"celkem bodů: ",null,null,null,null,{"$f":"SUM(S33:S49)","v":306}]
["Průkaz původu výše uvedeného jedince byl předložen. Identita psa byla zkontrolována."]
[]
["Poznámka bonitační komise: …………………………………………………………………………………………………………………………….."]
[null,null,null,null,null,null,null,null,null,null,null,"Podpisy bonitační komise: "]
["chovný ",null,null,null,null,null,null,null,null,"X"]
["opakování bonitace po 6 měsících",null,null,null,null,null,null,null,null,null,null,"předseda: ……………………………………………………….",null,null,null,null,null,null,null,"………………………………………."]
["opakování bonitace po 12 měsících"]
["nechovný ",null,null,null,null,null,null,null,null,null,null,"členové: …………………………………………………………………………….",null,null,null,null,null,null,null,"………………………………………."]

{"sheet":"list 2","index":1,"n_rows":44,"n_cols":6,"rows_kept":44,"cut":false,"hidden":false,"merged":[[35,0,36,0],[38,0,39,0],[4,0,6,0],[9,0,11,0],[15,0,17,0],[21,0,22,0]]}
[null,null,"    KLÍČ K BONITAČNÍ KARTĚ                                       str. 2"]
[null,null,"CMKU/ND č.",{"$f":"'list 1'!A16","v":"23 427/21"}]
[null,"1)","výška/délka psa","příliš krátký(1) příliš dlouhý(2) dlouhý(3) poněkud delší(4) téměř kvadratický",5,5]
[null,"2)","plemenné znaky ","nedostatečné(0) málo(1) dostatečné(2) dostateně typické(3) typické",7,7]
["celkový dojem 1-7","3)","celkový vzhled","neharmonický(1) málo harmonický(2) dostatečný (3) harmonický",4,4]
[null,"4)","stavba kostí","velmi lehká(1) lehká(2) střední(3) silná",4,4]
[null,"5)","osvalení","slabé(1) málo vyvinuté(2) normální(3) pevné a výrazné",4,4]
[null,"6)","kondice","slabá(1) málo vyvinutá(2) normální(3) velmi dobrá",4,4]
[null,"7)","pohlavní výraz","málo vyjádřený(1) dostatečný(2) normální(4) ušlechtilý ",7,7]
["povaha charakter      8-10","8)","sociální chování","nedostatečné(0) dostačující(1) dobré(3) velmi dobré",4,3]
[null,"9)","chování k okolí","příliš zdrženlivé(1) lhostejné(2) rezervované(3) otevřené, vnímavé",4,3]
[null,"10)","práh vzrušivosti","příliš nízký(0) nízký(1) dostatečný(3) vysoký",4,4]
[null,"11)","délka čenichu","příliš dlouhá(1) příliš krátká(2) ideální 1:1",3,3]
[null,"12)","temeno","klínovitá hlava(0) jablkovitá(1) horní část:široká(2) zaoblená(3) spadající temeno(4) typická",5,5]
[null,"13)","linie čenichu+temene"," spadající(1) stoupající(2) lehce spadající(3) souběžné",5,5]
["hlava 11-19","14)","čenichová partie","orlí nos(1)  klabonos(2) sedlový nos(3) kvadratický,široký,rovný,hranatý",5,5]
[null,"15)","pysky","nedostatečný pysk(0) plápolavé(1) příliš málo pysku(2) těsné(3) zaoblené(4) hranaté",5,5]
[null,"16)","nosní houba","rozštěp nosu, játrově zbarvená(0) masově zbarvená(2) skvrnitá(3) černá",4,4]
[null,"17)","hřbet nosu","úzký(1) těsná šířka(2) dostatečně široký(3) hranatý",4,4]
[null,"18)","stop","plochý(1) tvořený nadoočnicovými oblouky(2) dostatečný(3) výrazný,markantní",4,4]
[null,"19)","lícní svaly","příliš výrazné(0) výrazné(2) naznačené",5,5]
["uši 20-21","20)","nasazení","příliš vysoko(1) nízko(2) vysoko(3) správně",4,4]
[null,"21)","držení","ploše visící(1) odstávající(2) přiléhající(3) středně velké,dobře nesené",4,4]
[null,"22)","tvar","ekropium,entropium a makroblefaron(0) štěrbinovité(1) zřetelně otevřené(2) lehce otevřené(3) víčko přiléhající",6,6]
["oči 22-24","23)","barva","vodově modré (0) světle pichlavé (1) světle hnědé/zlatožluté (2) dvě modré u skvrnitých/modrošedé u modrých (3)středně hnědé, u skvrnitých dvoubarevné(4) tmavě hnědé",5,5]
[null,"24)","posazení očí","blízko sebe(1) hluboko posazené(2) daleko od sebe (3) správně uložené",4,4]
["postavení","25)","čelist","nesprávná čelist, předkus, zákus, křížový, klešťový(0) částečně klešťový(3) správné postavení",5,5]
["čelisti azubů 25-26","26)","postavení zubů","značně chybné postavení řezáků v dolní čelisti (0) nepravidelné postavení řezáků ve spodní čelisti (3)   správný nůžkový skus",5,3]
[null,"27)","počet zubů","chybějící zuby (mimo dvou  P1 v dolní čelisti)(0) chybí oba P1 dole(2) chybí jeden P1 dole(3) plnochrupý",4,4]
["chrup 27-29","28)","velikost zubů"," malé(1) středně velké(2) velké",4,4]
[null,"29)","pysky","rolující s perforací (0) rolující bez perforace (2) korektní-přiléhající spodní pysk",4,4]
["krk  30-31","30)","délka  ","krátký a silný(1) rovný bez klenutí(2) středně dlouhý, málo klenutý(3) středně dlouhý s klenutím(4) dlouhý,dobře klenutý",6,6]
[null,"31)","kůže na krku","lalok(0) volná kůže(1) poněkud volná kůže(2) suchý",4,4]
["hřbet 32","32)","hřbet","spadající/kapří(0) měkký, lehce povolený(2) přestavěný(3) lehce vzestupný(4)  lehce protáhlý(6) rovný",10,10]
[null,"33)","záď","příliš silně spáditá(0) sražená(1) silně spáditá(2) spáditá(4) vodorovná (5), korektní ",10,10]
["záď a ocas 33-35","34)","ocas","zalomený(0) silný(1) příliš dlouhý(2) příliš krátký(3) zahojené poškození ocasu(4) normální",6,6]
[null,"35)","nesení ocasu","zakroucený,do strany stočený(1) nad hřbetem(2) stažený(3) přirozeně visící",4,4]
[null,"36)","předhrudí","chybí(1) hrudní kost vystupující(2) malé(3) dostačující(4) výrazné",8,8]
["hruď 36-40","37)","hloubka hrudníku","nedostatečná(1) sotva postačující(2) dostačující(3) správná",6,6]
[null,"38)","šířka hrudníku","nedostatečná(1) sotva postačující(2)  dostačující(3) správná",6,6]
[null,"39)","linie břicha","rovná,málo vtažená(1) mléčná žláza(2) dostačující(3) dobře vtažená",6,6]
[null,"40)","hrudní koš","plochý(1) sudovitý(2) dostačující(3) dobře klenutý ",4,4]
[]
[null,null,null,"SOUČET BODŮ STR. 1",null,{"$f":"SUM(F3:F42)","v":198}]

{"sheet":"list 3","index":2,"n_rows":44,"n_cols":6,"rows_kept":44,"cut":false,"hidden":false,"merged":[[31,4,32,4],[31,5,32,5],[4,0,5,0],[21,1,21,2],[31,3,32,3],[31,2,32,2],[31,0,32,0],[31,1,32,1]]}
[null,null,null,"    KLÍČ K BONITAČNÍ KARTĚ                                       str. 3"]
[null,null,"CMKU/ND č.",{"$f":"'list 1'!A16","v":"23 427/21"}]
[null,"41)","postav.lopatky","strmá(1) příliš šikmá(2) slabě zaúhlená(3), dobře úhlená 100-110°",8,8]
[null,"42)","lopatka","volná(1) přetížená(2) dobře osvalená(3) dobře osvalená,správně uložená",4,4]
["hr.končet. 41-47","43)","nadloktí","příliš krátké,kratší než lopatka(2) příliš dlouhé(3) správné délky",4,4]
[null,"44)","lokty","vytočené ven(1) vytočené dovnitř(2) postavení úzce(3) přiléhající",4,4]
[null,"45)","předloktí","zahnuté(1) naběhlé(2) rovné",3,3]
[null,"46)","přední nadprstí","(viděno ze strany)      měkké(1) strmý postoj(2) lehce šikmo postavené   ",3,3]
[null,"47)","postav.končetin","(viděno zepředu)     tlapy postavené směrem ven nebo dovnitř(1) sudovitý postoj(2) úzký postoj(3) rovné",4,4]
[null,"48)","úhlení kolene ","strmé(1) příliš silné(2) těsně zaúhlené(5) správně zaúhlené",8,8]
["pánev.konč.","49)","úhlení hlezna","odvrácené(0) strmé(1) těsně zaúhlené(2) přeúhlené(3) postačující(4) správné",7,7]
["48-51","50)","postavení kolena","vytočené dovnitř(1) postaveno směrem ven(2) lehce vytočené ven(3)  přímé, kolmo pod kyčelní kloub",5,5]
[null,"51)","post.pánev.konč.","hákovité/kravské(1) při stání těsně u sebe(2) u země úzké(3) přímé",5,5]
["tlapy","52)","přední tlapy","zaječí(1) roztažené(2) dlouhé(3) kočičí",4,4]
["52-53","53)","zadní tlapy","zaječí(1) roztažené(2) dlouhé(3) kočičí",4,4]
[null,"54)","celkový dojem","stálý mimochod(0) občasný mimochod(1) nekontrolovaný pohyb(2) neharmonický(3) neklidný běh (4) plynulý s rovnoměrnou hybnou silou",6,6]
["chody","55)","přední končetiny","volná lopatka(1) volný loket(2) dovnitř přešlapující(3) uzavřené,správné",4,4]
["54-59","56)","loket","silně vytočený ven(1)  lehce vytočený(3) uzavřený,pevně přiléhající",5,5]
[null,"57)","pánev.končetiny","sudovité(1) hákovité(2) úzké u země(3) správné,rovnoběžné s předními končetinami",5,5]
[null,"58)","prostornost ","strnulý pohyb(1) krátké kroky(2) normální pohyb(3) dobrý prostorný pohyb",4,4]
[null,"59)","hřbet","měkký(1) neklidný,houpavý(2) stoupající(3) lehce vytažený nebo povolený(4) pevný,stabilní",6,6]
["BARVA "]
[null,"60)","žlutá","základní barva stříbřitě modrá nebo isabel(0)  jelení červeň(2) světlá žlutá(3) tmavá žlutá (4) zlatavě žlutá",6]
["žlutá","61)","barva předhrudí","sazové předhrudí a vnitřní strana končetin(1) světlé předhrudí a vnitří strana končetin(2) jako základní barva",3]
["60-63","62)","bílé znaky:","chyby oproti standardu(0) na břichu a na prsou větší než 15cm²(1) znak na hrudi menší než 15cm²(2) bez bílých znaků",3]
[null,"63)","maska","modrý nádech(0) bez masky(1) nedostatečně tmavá(2) tmavá maska",3]
["žíhaná","64)","žíhaná","základní barva stříbřitě modrá nebo isabel(0) rozmazené/vybledlé žíhání(1) dobrá základní barva jednostranné žíhání(2) silné žíhání(3) nepravidelné(4) slabé(5) dobrá zákl.barva rovnoměrné žíhání",6,6]
["64-67","65)","barva předhrudí","sazové předhrudí a vnitřní strana končetin(1) světlé předhrudí a vnitří strana končetin(2) jako základní barva",3,3]
[null,"66)","bílé znaky","chyby oproti standardu(0) na břichu a na prsou větší než 15cm²(1) znak na hrudi menší než 15cm²(2) bez bílých znaků",3,3]
[null,"67)","maska","modrý nádech(0) bez masky(1) nedostatečně tmavá(2) tmavá maska",3,3]
["skvrnitá","68)","skvrnitá","chybná barva-ne podle standardu(0) tmavě šedá(1) stříbřitě šedá(2) silně prokvetlá(3) lehce prokvetlá(4)  základní barva čistě bílá",7]
["68-69","69)","rozmístění skvrn","bez černých skvrn-šedé(0) s černými skvrnami a nebo bílými skvrnami-šedé(1) černé skvrny nedostatečně oddělené(2) skvrny nevhodně rozmístěné(6) správná skvrnitost",8]
[]
["černá","70)","černá","hnědočerná(1) modročerná(3) černá(5) lakově černá ",7]
["70-71","71)","bílé znaky","přesahující přes krk, hrudník a tlapy(1) na prsou,krku a tlapách(2) bílý prsní znak větší než 15cm² nebo bílé tlapy(5) bílý prsní znak menší než 15cm²(6) bez bílých znaků ",8]
["plátová","72)","černá","hnědočerná(1) modročerná(3) černá",5]
["72-73","73)","černé plotny","téměř bílé, žádné pláty(1) malé a málo(2) typické, velké, rozdělené",3]
["plášťová","74)","černá","hnědočerná(1) modročerná(3) černá(5) lakově černá",6]
["74-75","75)","znaky","špatné znaky(2) dobré znaky, přerušený límec(4) typický, dokončený límec",6]
["modrá","76)","modrá","isabel(0) žlutě modrá(1) černě modrá(3) šedě modrá(5) ocelově modrá",8]
["76-77","77)","bílé znaky","chyby oproti standardu(0) bílé znaky na prsou, krku a tlapách(2) velikost prsního znaku větší než 15cm²(3) velikost prs.znaku menší než 15cm²(5) bez bílých znaků",7]
[null,null,null,"celkem str. 2",null,{"$f":"SUM(F3:F41)","v":108}]
[null,null,null,"Nejvyšší možný získaný počet bodů"]
[null,null,null,"Skutečně získaný počet bodů",null,{"$f":"F42+'list 2'!F44","v":306}]